[Event "Italian-ch Semifinal 2022"]
[Site "Acqui Terme"]
[Date "2022.06.15"]
[Round "5.5"]
[White "Palozza, Christian"]
[Black "Pisacane, Pietro"]
[Result "1-0"]
[ECO "E05"]
[WhiteElo "2284"]
[BlackElo "2138"]
[Annotator "TA"]
[PlyCount "119"]
[EventDate "2022.06.15"]
[EventType "swiss"]
[EventCountry "ITA"]
[SourceTitle "playchess.com"]
[Source "ChessBase"]
[SourceQuality "1"]
[TimeControl "40/5400+30:1800+30"]

{[%evp 13,119,14,4,10,15,15,5,5,12,7,16,8,14,12,45,-12,-8,-16,-13,-7,-21,-19,0,0,72,-28,-12,-98,-82,-93,-93,-93,-94,-80,-70,-85,-84,-84,-77,-131,-147,-133,-17,-38,-36,-31,-36,-35,-44,-56,8,8,8,8,32,29,52,45,65,65,65,65,65,65,65,18,135,134,131,131,131,129,128,107,107,107,110,80,80,80,85,8,8,8,8,-1371,0,0,0,0,1110,1020,1137,1137,4155,476,4141,4141,29973,5318,29988,29989,29989,29989,29989,29990,29990,29989]} 1. d4 {[%emt 0:00:02]} d5 {[%emt 0:03:11]} 2. c4 {[%emt 0:00:04]} e6 {[%emt 0:00:03]} 3. Nf3 {[%emt 0:00:05]} Nf6 {[%emt 0:00:06]} 4. g3 {[%emt 0:00:03]} Be7 {[%emt 0:00:06]} 5. Bg2 {[%emt 0:00:05]} O-O {[%emt 0:00:06]} 6. O-O {[%emt 0:00:03]} dxc4 {[%emt 0:00:14]} 7. Qc2 {[%emt 0:01:19]} b5 {[%emt 0:00:08]} 8. a4 {[%emt 0:02:05] E05: Open Catalan: 5 Nf3 Be7.} b4 {[%emt 0:00:05]} 9. Nfd2 {[%emt 0:03:00]} c6 {[%emt 0:00:50]} 10. Nxc4 {[%emt 0:00:24] The position is equal.} Qxd4 {[%emt 0:05:22]} 11. Rd1 {[%emt 0:01:26]} Qc5 {[%emt 0:02:01]} 12. Be3 {[%emt 0:00:12][%mdl 1024] White has compensation.} Qh5 {[%emt 0:02:03]} 13. Nbd2 {[%emt 0:00:25]} e5 {[%emt 0:12:02] [#] Against Bd4 13...Nd5 is becoming the main line.} 14. Nf1 $146 {[%emt 0:22:37]} (14. Ne4 $14) ({Predecessor:} 14. Nf3 Ng4 15. Rac1 Bf5 16. Qb3 e4 17. Nh4 Bxh4 18. gxh4 Qxh4 19. h3 Nxe3 20. Qxe3 {0-1 (39) Solon,N (2306)-Timmermans,M (2385) Chess.com INT 2021}) 14... Bf5 $11 {[%emt 0:07:34]} 15. Qc1 {[%emt 0:11:15]} Be6 {[%emt 0:21:58]} 16. Bf3 {[%emt 0:16:57]} Qf5 {[%emt 0:08:19]} 17. Nd6 {[%emt 0:09:02]} Bxd6 {[%emt 0:02:45]} 18. Rxd6 {[%emt 0:00:03]} Bd5 {[%emt 0:07:34]} (18... a5 $11) 19. Qc5 {[%emt 0:03:36]} (19. g4 $16 Qc8 20. Ng3) 19... a5 {[%emt 0:09:14]} 20. Bxd5 {[%emt 0:10:10]} (20. g4 $1 $11 Qc8 21. Bxd5 Nxd5 22. f3) 20... cxd5 $17 {[%emt 0:00:57]} 21. Rc1 {[%emt 0:00:25]} Nbd7 $36 {[%emt 0:07:44][%mdl 2048] Black is in control.} 22. Qc2 {[%emt 0:00:01]} Qxc2 {[%emt 0:02:02]} 23. Rxc2 {[%emt 0:00:01]} Rfc8 {[%emt 0:02:43]} 24. Rxc8+ {[%emt 0:03:09]} Rxc8 {[%emt 0:00:01]} 25. Ra6 {[%emt 0:00:06]} d4 {[%emt 0:01:50]} 26. Bg5 {[%emt 0:05:29]} ({White should play} 26. Bd2) 26... Ne4 {[%emt 0:00:31]} 27. Be7 {[%emt 0:01:14]} Nb8 {[%emt 0:02:16]} (27... Re8 $17 28. f3 Nc3) 28. Ra8 {[%emt 0:00:52]} f6 {[%emt 0:00:27] And now ...Kf7 would win.} ({Resist} 28... Re8 29. f3 Nf6 30. Bxf6 gxf6 31. g4 $16) 29. f3 {[%emt 0:00:45] [#]} Nc3 {[%emt 0:01:06]} 30. Bd6 $1 {[%emt 0:00:53] [#]} Nxa4 $1 {[%emt 0:00:44]} 31. b3 {[%emt 0:00:38] [#]} Nc3 {[%emt 0:01:16]} 32. Rxb8 $11 {[%emt 0:00:42]} Rxb8 {[%emt 0:00:12]} 33. Bxb8 {[%emt 0:00:01]} Nxe2+ {[%emt 0:00:52]} 34. Kf2 {[%emt 0:00:01]} Nc3 {[%emt 0:00:34]} 35. Nd2 $1 {[%emt 0:00:20]} a4 {[%emt 0:00:16]} 36. bxa4 {[%emt 0:00:11]} Nxa4 {[%emt 0:00:04]} 37. Bd6 {[%emt 0:00:05]} Kf7 {[%emt 0:00:34]} 38. Bxb4 {[%emt 0:00:14]} Ke6 {[%emt 0:00:35]} 39. Ke2 {[%emt 0:00:01]} (39. Ne4 $14) 39... Kd5 {[%emt 0:00:32]} (39... f5 $11) 40. Bf8 $1 $16 {[%emt 0:00:00]} g6 {[%emt 0:00:00]} 41. Ne4 $1 {[%emt 0:06:10]} f5 {[%emt 0:08:24]} 42. Nf6+ {[%emt 0:00:35]} Kc4 {[%emt 0:01:14]} 43. Bh6 {[%emt 0:07:10]} ({Don't play} 43. Nxh7 $6 Kc3 44. Ba3 Kc2 $11) 43... Nc3+ {[%emt 0:09:15]} 44. Ke1 $1 {[%emt 0:12:17]} e4 {[%emt 0:05:54]} 45. fxe4 {[%emt 0:00:26]} fxe4 {[%emt 0:00:06]} 46. Nxh7 {[%emt 0:00:51] Strongly threatening Nf8.} e3 {[%emt 0:05:05]} 47. Nf8 {[%emt 0:02:18]} (47. Ng5 $1 $16) 47... Nd5 $11 {[%emt 0:02:16] White must now prevent ...d3.} 48. Nxg6 {[%emt 0:01:51]} d3 {[%emt 0:00:42]} 49. Bg7 $2 {[%emt 0:11:20][%mdl 8192]} (49. Ne5+ $11 Kd4 50. Nf3+ Ke4 51. Bxe3 $1) 49... d2+ $2 {[%emt 0:00:48]} ({Better is} 49... Kb3 $1 $19 {[%cal Rb3c2] ( -> ...Kc2)} 50. Kd1 e2+ 51. Kd2 Ne3) 50. Kd1 {[%emt 0:00:37] Ba1 is the strong threat.} Kd3 {[%emt 0:00:57][%csl Gd3][%cal Re3e2]} 51. Ne5+ {[%emt 0:00:01]} Ke4 $2 {[%emt 0:00:19][%mdl 8192] [#]} (51... Kd4 $11 52. Nd7+ Kc4 53. Ne5+ Kd4 54. Nf7+ Kd3 55. Ne5+ Kd4) 52. Nc4 $1 $18 {[%emt 0:00:23]} Kf3 {[%emt 0:00:45] [#]} 53. Bd4 $1 {[%emt 0:03:12][%cal Oc4e3] Threatens to win with Nxe3!} Kg2 {[%emt 0:01:41]} 54. h4 {[%emt 0:01:28]} (54. Nxe3+ $142 Kxh2 55. Nxd5 Kxg3 56. Ba1) 54... Kxg3 {[%emt 0:00:28]} (54... e2+ $142 55. Kxe2 Kxg3 56. Bf2+ Kg4 57. Kxd2 Kh5) 55. h5 {[%emt 0:00:01][%cal Bh4h5,Bh5h6,Bh6h7][%mdl 32] h6 would kill now.} Ne7 {[%emt 0:00:36]} 56. h6 {[%emt 0:00:18] Intending Ne5 and mate.} Nf5 {[%emt 0:00:29]} 57. h7 {[%emt 0:00:39] White mates.} e2+ {[%emt 0:00:16]} 58. Kxe2 {[%emt 0:00:22]} Nxd4+ {[%emt 0:00:08]} 59. Kxd2 {[%emt 0:00:12]} Nf3+ {[%emt 0:00:06]} 60. Kd1 {[%emt 0:00:08] Weighted Error Value: White=0.48/Black=0.63} 1-0

[Event "Italian-ch Semifinal 2022"]
[Site "Acqui Terme"]
[Date "2022.06.15"]
[Round "5.6"]
[White "Perossa, Nicolas"]
[Black "Misiano, Franco"]
[Result "1/2-1/2"]
[ECO "B30"]
[WhiteElo "2139"]
[BlackElo "2195"]
[Annotator "TA"]
[PlyCount "80"]
[EventDate "2022.06.15"]
[EventType "swiss"]
[EventCountry "ITA"]
[SourceTitle "playchess.com"]
[Source "ChessBase"]
[SourceQuality "1"]
[TimeControl "40/5400+30:1800+30"]

{[%evp 9,80,19,16,31,31,23,23,16,19,14,31,0,47,52,60,53,60,25,19,14,11,0,17,17,19,20,36,34,35,35,36,33,29,27,59,51,51,29,29,29,29,29,35,10,22,7,29,10,10,10,10,10,10,10,14,14,14,14,14,21,23,0,0,0,0,0,0,0,0,0,0,-98,0]} 1. e4 {[%emt 0:00:01]} c5 {[%emt 0:00:09]} 2. Nf3 {[%emt 0:00:35]} Nc6 {[%emt 0:00:06]} 3. Bb5 {[%emt 0:00:25]} Nf6 {[%emt 0:00:13]} 4. Bxc6 {[%emt 0:00:18]} dxc6 {[%emt 0:00:10]} 5. Nc3 {[%emt 0:01:34]} Bg4 {[%emt 0:01:10]} 6. d3 {[%emt 0:00:35] B30: Sicilian: 2...Nc6 3 Bb5, lines without ...g6.} Qc7 {[%emt 0:01:19]} 7. Be3 {[%emt 0:01:02]} e5 {[%emt 0:00:32]} 8. h3 {[%emt 0:02:53] White has an edge.} Bh5 {[%emt 0:00:52]} 9. g4 {[%emt 0:01:47]} Bg6 {[%emt 0:00:10][%cal Oc5c4]} 10. Nh4 {[%emt 0:01:27]} Nd7 {[%emt 0:01:33]} (10... c4 $11) 11. Qf3 $14 {[%emt 0:13:50]} f6 {[%emt 0:00:49]} 12. Nxg6 {[%emt 0:03:06]} hxg6 {[%emt 0:00:27] [#]} 13. Qg3 $146 {[%emt 0:02:27]} ({Predecessor:} 13. g5 Be7 14. Qg4 Nf8 15. O-O-O Qd7 16. Qg3 O-O-O 17. gxf6 gxf6 18. f4 exf4 19. Bxf4 {½-½ (47) Du,Y (2103)-Dai,C (2436) Danzhou 2016}) 13... g5 {[%emt 0:05:39]} 14. O-O-O {[%emt 0:01:09]} Rh4 {[%emt 0:01:08]} 15. Nb1 {[%emt 0:17:08][%cal Bc3b1,Bb1d2,Bd2f3][%mdl 32]} O-O-O {[%emt 0:05:51]} 16. Nd2 {[%emt 0:00:09]} Be7 {[%emt 0:00:52]} 17. Rh2 {[%emt 0:03:56]} Rdh8 {[%emt 0:00:40]} 18. Rdh1 {[%emt 0:01:08]} Nf8 {[%emt 0:00:55]} 19. Nf3 {[%emt 0:00:21]} R4h7 {[%emt 0:00:18]} 20. h4 {[%emt 0:06:14]} gxh4 {[%emt 0:00:32]} 21. Rxh4 {[%emt 0:00:17]} g5 {[%emt 0:03:51]} 22. Rxh7 {[%emt 0:01:14]} Rxh7 {[%emt 0:00:08]} 23. Rxh7 {[%emt 0:00:21]} Nxh7 {[%emt 0:00:06]} 24. Qh3 {[%emt 0:01:33]} Nf8 {[%emt 0:00:16]} 25. Qh8 {[%emt 0:00:07]} Qd8 {[%emt 0:01:56]} 26. Qg8 {[%emt 0:01:11]} Qd7 {[%emt 0:00:42]} 27. Qf7 {[%emt 0:10:23]} Kd8 {[%emt 0:07:03]} 28. Nh2 {[%emt 0:05:05]} Qe6 {[%emt 0:00:20]} 29. Qxe6 {[%emt 0:01:17]} Nxe6 $11 {[%emt 0:00:11][%mdl 4096] Endgame KBN-KBN} 30. c3 {[%emt 0:00:21]} Kd7 {[%emt 0:02:13]} 31. Nf1 {[%emt 0:00:59]} b6 {[%emt 0:00:56]} 32. Ng3 {[%emt 0:02:06]} Bd6 {[%emt 0:01:41]} 33. Nf5 {[%emt 0:00:14]} Bf8 {[%emt 0:00:46]} 34. Kc2 {[%emt 0:07:57]} Kc7 {[%emt 0:02:50]} 35. a4 {[%emt 0:06:57]} Kd7 {[%emt 0:01:06]} 36. f3 {[%emt 0:01:08]} Kc7 {[%emt 0:00:25]} 37. b3 {[%emt 0:04:07]} Kd7 {[%emt 0:00:20]} 38. Bc1 {[%emt 0:00:29]} Kc7 {[%emt 0:00:35]} 39. Ba3 {[%emt 0:02:48]} c4 {[%emt 0:01:45]} 40. Bc1 {[%emt 0:00:00]} (40. b4 $11 {keeps the balance.}) 40... cxd3+ {[%emt 0:59:55] Weighted Error Value: White=0.12 (very precise) /Black=0.05 (flawless)} ({Better is} 40... cxb3+ $17 41. Kxb3 Nc5+ 42. Kc2 Nxa4) 1/2-1/2

[Event "Italian-ch Semifinal 2022"]
[Site "Acqui Terme"]
[Date "2022.06.15"]
[Round "5.7"]
[White "Paduano, Claudio"]
[Black "Martorelli, Antonio"]
[Result "0-1"]
[ECO "E80"]
[WhiteElo "2138"]
[BlackElo "2141"]
[Annotator "TA"]
[PlyCount "110"]
[EventDate "2022.06.15"]
[EventType "swiss"]
[EventCountry "ITA"]
[SourceTitle "playchess.com"]
[Source "ChessBase"]
[SourceQuality "1"]
[TimeControl "40/5400+30:1800+30"]

{[%evp 13,110,56,73,45,39,11,10,6,18,0,20,0,25,22,25,25,34,-32,43,43,43,43,46,45,54,44,54,47,55,22,111,108,100,-47,-35,-678,-658,-615,0,-115,-110,-289,-76,-71,-77,-79,-82,-85,-75,-76,-77,-274,-83,-86,-93,-196,-194,-191,-171,-196,-182,-164,-159,-444,-452,-456,-459,-434,-463,-460,-468,-467,-447,-437,-366,-370,-350,-289,-324,-279,-253,-317,-255,-232,-226,-210,-208,-517,-477,-649,-619,-653,-618,-1333,-1289,-29982,-29983,-29983,-29984]} 1. d4 {[%emt 0:21:28]} Nf6 {[%emt 0:00:10]} 2. c4 {[%emt 0:00:08]} g6 {[%emt 0:01:52]} 3. Nc3 {[%emt 0:00:27]} Bg7 {[%emt 0:00:09]} 4. e4 {[%emt 0:00:34]} d6 {[%emt 0:00:07]} 5. f3 {[%emt 0:00:40]} e5 {[%emt 0:09:54]} 6. d5 {[%emt 0:08:23]} Nh5 {[%emt 0:00:11]} 7. Be3 {[%emt 0:04:49]} f5 {[%emt 0:00:20]} 8. Nge2 {[%emt 0:12:32] E80: King's Indian: Sämisch: Lines without early ...0-0.} Na6 {[%emt 0:06:17] [#]} 9. b4 $146 {[%emt 0:22:18]} ({Predecessor:} 9. Qd2 f4 10. Bf2 g5 11. O-O-O Nc5 12. g4 Nf6 13. h4 h6 14. hxg5 hxg5 15. Rxh8+ Bxh8 {1-0 (47) Jehle,A (1973)-Djalalova,N (1896) Stuttgart 2007}) 9... O-O {[%emt 0:01:19]} 10. a3 {[%emt 0:02:40] The position is equal.} c6 {[%emt 0:02:21]} 11. Qd2 {[%emt 0:08:10]} c5 {[%emt 0:05:25]} 12. Nc1 {[%emt 0:08:48]} Qh4+ {[%emt 0:07:56]} 13. Bf2 {[%emt 0:03:16]} Qd8 {[%emt 0:12:39]} 14. Nd3 {[%emt 0:01:28][%cal Rb4c5]} Nf4 {[%emt 0:00:56]} 15. bxc5 {[%emt 0:01:40]} ({White should try} 15. Rb1 $14) 15... Nxd3+ {[%emt 0:00:15]} (15... Bh6 $1 $15 16. Qc2 (16. Nxf4 Nxc5 17. Qc2 exf4 $11) 16... Qa5) 16. Bxd3 $14 {[%emt 0:00:21] Black must now prevent cxd6.} Nxc5 {[%emt 0:00:11]} 17. Bxc5 {[%emt 0:00:35]} dxc5 {[%emt 0:00:02]} 18. O-O {[%emt 0:00:39]} Qa5 {[%emt 0:07:55]} 19. Rfb1 {[%emt 0:00:32]} Bh6 {[%emt 0:02:50]} 20. Qxh6 {[%emt 0:00:30]} Qxc3 {[%emt 0:00:04]} 21. Rd1 {[%emt 0:00:31]} f4 {[%emt 0:12:19]} (21... fxe4 $11 {remains equal.} 22. Bxe4 Bf5) 22. Qg5 $16 {[%emt 0:00:28]} Bd7 {[%emt 0:00:37]} 23. Qe7 {[%emt 0:00:31]} (23. a4 $1 $16) 23... Ba4 $15 {[%emt 0:00:59]} 24. Qxb7 $2 {[%emt 0:00:31][%mdl 8192]} Bxd1 {[%emt 0:00:20]} 25. Rxd1 {[%emt 0:00:10]} a5 $2 {[%emt 0:01:46]} ({Black should play} 25... Qd4+ $19 26. Kh1 Rab8) 26. Bf1 {[%emt 0:00:49]} (26. Qc6 $11) 26... Qc2 $17 {[%emt 0:05:12]} ({Reject} 26... Qxa3 $6 27. d6 Qe3+ 28. Kh1 $11) ({Worse is} 26... Qe3+ 27. Kh1) 27. Re1 $2 {[%emt 0:00:30]} (27. Ra1 $17) 27... Rab8 $2 {[%emt 0:00:47]} (27... Qd2 $19 {has better winning chances.} 28. Rb1 Qe3+ 29. Kh1 Rab8 30. Qxb8 Rxb8 31. Rxb8+ Kf7) 28. Qe7 {[%emt 0:00:26][%csl LRc5,LRe5]} Qc3 $1 {[%emt 0:08:41][%csl LRa3,LRe1]} 29. Qe6+ {[%emt 0:00:19]} Rf7 $1 {[%emt 0:01:42]} 30. Rd1 {[%emt 0:00:38]} Qe3+ {[%emt 0:08:31]} 31. Kh1 {[%emt 0:00:01]} Qb3 {[%emt 0:00:16]} 32. Re1 {[%emt 0:00:56]} (32. Ra1 $17 {only move.}) 32... Qc3 $2 {[%emt 0:01:38]} (32... Qxa3 $19 33. Qc6 Qb2) 33. Rd1 {[%emt 0:00:10]} Qc2 {[%emt 0:00:55]} 34. Re1 {[%emt 0:00:58]} (34. Ra1 $17 {was the only chance.}) 34... Qd2 $1 $40 {[%emt 0:00:36][%mdl 128] Black goes for the king.} 35. Ra1 {[%emt 0:00:28]} Qd4 {[%emt 0:00:35]} 36. Re1 {[%emt 0:00:34]} Rbb7 {[%emt 0:01:43][%cal Bb8b7,Bb7b3,Bb3d3][%mdl 32]} 37. Qe8+ {[%emt 0:00:30] [#]} Kg7 $1 {[%emt 0:00:12]} 38. Qa4 $2 {[%emt 0:00:28] [#]} (38. Qe6 $17 {keeps fighting.}) 38... Qc3 $1 {[%emt 0:00:49]} 39. Rd1 {[%emt 0:00:32]} Qb3 {[%emt 0:00:20]} 40. Qxb3 {[%emt 0:00:00]} Rxb3 {[%emt 0:00:00][%mdl 4096] Endgame KRR-KRB} 41. g3 {[%emt 0:24:17]} fxg3 {[%emt 0:06:09]} 42. d6 {[%emt 0:01:22]} Rfxf3 {[%emt 0:07:25]} ({Avoid the trap} 42... Rbxf3 $2 43. Be2 Rf2 44. hxg3 $19) 43. d7 {[%emt 0:06:00] [#]} Rxf1+ $1 {[%emt 0:00:33]} 44. Rxf1 {[%emt 0:00:02] KR-KR} Rd3 {[%emt 0:00:20]} 45. hxg3 {[%emt 0:00:48]} Rxd7 {[%emt 0:00:12]} 46. Rb1 {[%emt 0:00:43]} Rd3 {[%emt 0:03:43]} 47. Rb5 {[%emt 0:00:48]} Rxa3 {[%emt 0:01:11]} 48. Kg2 {[%emt 0:00:30]} a4 {[%emt 0:02:12][%cal Ba5a4,Ba4a3,Ba3a2][%mdl 32]} 49. Rxc5 {[%emt 0:00:15]} Kf6 {[%emt 0:00:34]} 50. Kf2 $2 {[%emt 0:00:45]} (50. Ra5) 50... Rc3 {[%emt 0:02:35] Hoping for ...h5.} 51. Kg2 {[%emt 0:00:31]} a3 {[%emt 0:01:54]} 52. Rc6+ {[%emt 0:00:30]} Kg5 {[%emt 0:00:30] Strongly threatening ...Kg4.} 53. c5 {[%emt 0:00:30]} Kg4 {[%emt 0:00:28]} 54. Ra6 {[%emt 0:00:30]} Rc2+ {[%emt 0:00:15]} 55. Kg1 {[%emt 0:00:30]} a2 {[%emt 0:00:16] Weighted Error Value: White=0.72/Black=0.27 (precise)} 0-1

[Event "Italian-ch Semifinal 2022"]
[Site "Acqui Terme"]
[Date "2022.06.15"]
[Round "5.8"]
[White "Corvi, Marco"]
[Black "Pegno, Mattia"]
[Result "1-0"]
[ECO "A35"]
[WhiteElo "2318"]
[BlackElo "2065"]
[Annotator "TA"]
[PlyCount "119"]
[EventDate "2022.06.15"]
[EventType "swiss"]
[EventCountry "ITA"]
[SourceTitle "playchess.com"]
[Source "ChessBase"]
[SourceQuality "1"]
[TimeControl "40/5400+30:1800+30"]

{[%evp 9,119,43,43,32,41,33,25,24,22,27,44,2,45,50,39,38,71,28,87,-336,-335,-335,-345,-335,-320,-375,-265,-251,103,109,106,106,108,106,97,108,108,99,106,107,104,103,108,87,87,88,94,87,131,133,125,136,126,118,293,287,305,276,252,153,367,184,233,222,317,335,296,194,182,57,110,83,272,164,282,282,618,627,656,689,694,686,1608,1406,1719,1108,1608,1566,1438,1364,1748,1734,1713,1703,1724,1719,1636,1619,1541,1499,8360,8009,5956,5956,5868,5484,5318,5225,5081,4929,4866,1047]} 1. c4 {[%emt 0:00:50]} c5 {[%emt 0:00:11]} 2. Nc3 {[%emt 0:00:20]} Nc6 {[%emt 0:00:16]} 3. Nf3 {[%emt 0:01:01]} e5 {[%emt 0:00:54]} 4. e3 {[%emt 0:04:49]} f5 {[%emt 0:02:59]} 5. d4 {[%emt 0:01:41]} e4 {[%emt 0:01:40]} 6. d5 {[%emt 0:06:55] A35: Symmetrical English: 2 Nc3 Nc6 3 Nf3.} exf3 {[%emt 0:24:48]} 7. dxc6 {[%emt 0:00:43]} dxc6 {[%emt 0:11:21]} 8. Qxd8+ {[%emt 0:03:11] White has an edge.} Kxd8 {[%emt 0:00:12]} 9. gxf3 {[%emt 0:00:02]} g6 {[%emt 0:10:53]} 10. e4 {[%emt 0:04:47] [#]} Bg7 $146 {[%emt 0:03:31]} ({Predecessor:} 10... Bd6 11. Be3 Nf6 12. Bg5 Rf8 13. O-O-O Kc7 14. Bg2 Nh5 15. Rxd6 Kxd6 16. Rd1+ Ke6 {1-0 (94) Bauer,C (2647)-Rindlisbacher,L (2289) Zuerich 2014}) 11. Bg5+ {[%emt 0:00:23]} Ke8 {[%emt 0:01:47]} 12. O-O-O {[%emt 0:01:03]} Be6 {[%emt 0:12:05]} 13. Bh3 {[%emt 0:12:01] Black must now prevent exf5.} h6 {[%emt 0:17:49]} (13... Kf7 $11) 14. exf5 $2 {[%emt 0:06:42][%mdl 8192] White is more active.} (14. Be3 $16 {stays on course.}) 14... hxg5 $19 {[%emt 0:02:45]} 15. Rhe1 {[%emt 0:01:47]} Rxh3 {[%emt 0:02:37]} 16. Rxe6+ {[%emt 0:01:49]} Kf8 {[%emt 0:00:21]} 17. Ne4 {[%emt 0:02:10]} Rxf3 {[%emt 0:03:08]} 18. fxg6 {[%emt 0:11:30]} Re8 $2 {[%emt 0:01:27]} (18... Bd4 $19 {Threatens to win with ...Kg7.} 19. Nxg5 Rxf2) 19. Nxg5 $16 {[%emt 0:01:34][%cal Rg5h7]} Bh6 {[%emt 0:00:23]} 20. g7+ $1 {[%emt 0:00:23][%mdl 64] [#] Decoy} Kxg7 {[%emt 0:00:38]} 21. Rd7+ {[%emt 0:08:13]} Re7 {[%emt 0:00:43]} 22. Rdxe7+ {[%emt 0:00:36]} Nxe7 {[%emt 0:00:07]} 23. Rxh6 {[%emt 0:00:15]} Rxf2 {[%emt 0:00:52][%mdl 4096] Endgame KRN-KRN} 24. Rh7+ {[%emt 0:01:10]} Kf8 {[%emt 0:00:15]} 25. Ne6+ {[%emt 0:00:34]} Ke8 {[%emt 0:00:08]} 26. Nxc5 {[%emt 0:00:22]} b6 {[%emt 0:00:51]} 27. Nd3 {[%emt 0:00:51]} Re2 {[%emt 0:00:30]} 28. h4 {[%emt 0:00:55][%cal Bh2h4,Bh4h5][%mdl 32]} a5 {[%emt 0:00:41]} 29. h5 {[%emt 0:01:16]} Re4 {[%emt 0:00:30]} 30. b3 {[%emt 0:01:34]} Kd7 {[%emt 0:00:36]} 31. Kd2 {[%emt 0:04:11]} a4 $2 {[%emt 0:00:28]} (31... Ke6 $16 32. Ne1 Kf5) 32. bxa4 $18 {[%emt 0:01:04][%cal Oa4a5]} Kd6 {[%emt 0:00:30]} 33. Rh6+ {[%emt 0:00:30]} Kc7 {[%emt 0:00:20]} 34. Kc3 {[%emt 0:01:14] Hoping for Rf6.} Re2 $2 {[%emt 0:00:35]} (34... Rh4 $16 35. Ne5 c5) 35. a3 {[%emt 0:03:42]} (35. Rh7 $142) 35... Ra2 {[%emt 0:00:35]} (35... Rh2 $142 36. c5 bxc5 37. Nxc5 Nf5) 36. Kb3 {[%emt 0:00:29]} Re2 {[%emt 0:00:27]} (36... Rh2 $142 37. Rh7 Kd6) 37. Rf6 {[%emt 0:00:54]} Re3 {[%emt 0:00:28]} 38. Kc3 {[%emt 0:01:09] And now Kd2 would win.} Rh3 {[%emt 0:00:31]} 39. Re6 {[%emt 0:01:34]} (39. h6 $18) 39... Kd7 {[%emt 0:00:26]} (39... Nf5 $14) 40. Re5 {[%emt 0:00:00]} Kd6 $2 {[%emt 0:00:00]} (40... Ng8 $16) 41. Rg5 {[%emt 0:03:34]} Rh4 {[%emt 0:25:04]} (41... Ke6 {might work better.} 42. a5 bxa5 43. Rxa5 Ng8 44. Re5+ Kd6) 42. a5 {[%emt 0:05:29][%cal Ba4a5,Ba5a6][%mdl 32]} b5 {[%emt 0:03:11]} (42... bxa5 43. Rxa5 Ng8) 43. cxb5 {[%emt 0:11:26] White is clearly winning.} Nd5+ {[%emt 0:01:10]} 44. Kb3 {[%emt 0:03:49]} cxb5 {[%emt 0:00:55]} 45. a6 {[%emt 0:01:53][%cal Og5d5] [#] aiming for Rxd5+!} Nc7 {[%emt 0:02:47]} 46. Rg6+ {[%emt 0:02:20]} Kd5 {[%emt 0:00:32]} 47. Nb4+ {[%emt 0:00:47]} Kd4 {[%emt 0:00:29]} 48. Rc6 {[%emt 0:02:10]} Rh3+ {[%emt 0:00:23]} 49. Kb2 {[%emt 0:00:20]} Nxa6 {[%emt 0:00:40]} 50. Rxa6 {[%emt 0:01:20]} Rxh5 {[%emt 0:00:10] KRN-KR} 51. Rd6+ {[%emt 0:00:26]} Kc4 {[%emt 0:00:38]} 52. Rc6+ {[%emt 0:00:11]} Kd4 {[%emt 0:00:10]} 53. Rc3 {[%emt 0:00:26]} Rh7 {[%emt 0:01:00]} 54. Kb3 {[%emt 0:00:06] Nc6+ is the strong threat.} Rh1 {[%emt 0:00:31]} 55. Nc2+ {[%emt 0:00:24]} Kd5 {[%emt 0:00:23]} 56. Kb4 {[%emt 0:00:33]} Rb1+ {[%emt 0:00:10]} 57. Rb3 {[%emt 0:00:16]} Rc1 {[%emt 0:00:41]} 58. Rb2 {[%emt 0:00:34]} Rh1 {[%emt 0:00:45]} 59. Kxb5 {[%emt 0:00:12]} Rh8 {[%emt 0:00:04]} 60. Nb4+ {[%emt 0:00:12] What a bad dream for Black.  Weighted Error Value: White=0.35/Black=0.63} 1-0